bitfinex-derivatives/quotes_BTCF0:USTF0_20251219
["timestamp","ask_amount","ask_price","bid_price","bid_amount"]
[1766109007463,0.36672,85228.0,85216.0,0.00592]
[1766109008173,0.36672,85228.0,85216.0,0.0176612]
[1766109008374,0.36672,85228.0,85219.0,0.1585507]
[1766109008570,0.28672,85228.0,85219.0,0.1585507]
[1766109008771,0.00017597,85231.0,85219.0,0.1585507]
[1766109008772,0.00592,85227.0,85219.0,0.1585507]
[1766109010975,0.00017597,85231.0,85219.0,0.1585507]
[1766109010976,0.00592,85228.0,85222.0,0.3608]
[1766109012677,0.00017597,85231.0,85222.0,0.3725404]
[1766109012977,0.00592,85230.0,85224.0,0.0117401]
[1766109013178,0.00592,85230.0,85223.0,0.0117403]
[1766109013377,0.00592,85230.0,85222.0,0.3608]
[1766109013878,0.00592,85230.0,75000.0,0.005]
[1766109013879,0.3608,85224.0,85217.0,0.00592]
[1766109014077,0.00592,85230.0,85221.0,0.3608]
[1766109020090,0.00592,85230.0,85222.0,0.0117405]
[1766109020276,0.00592,85230.0,85221.0,0.3608]
[1766109022383,0.21264,85236.0,85229.0,0.3608]
[1766109022691,0.00592,85235.0,85230.0,0.14177]
[1766109022994,0.00592,85234.0,85229.0,0.3608]
[1766109024189,0.0117382,85239.0,85229.0,0.3608]
[1766109024496,0.00592,85238.0,85229.0,0.3608]
[1766109025182,0.00592,85238.0,85230.0,0.14177]
[1766109025482,0.3608,85245.0,85237.0,0.14177]
[1766109025690,0.13867583,85258.0,85245.0,0.14177]
[1766109025691,0.00234583,85258.0,85245.0,0.14177]
[1766109025876,0.00234583,85258.0,85257.0,0.3608]
[1766109025877,0.00592,85258.0,85257.0,0.3608]
[1766109026073,0.3608,85268.0,85257.0,0.3608]
[1766109026281,0.00592,85267.0,85258.0,0.14177]
[1766109026580,0.00592,85266.0,85258.0,0.14177]
[1766109027176,0.13633,85265.0,85257.0,0.3608]
[1766109027485,0.0117347,85264.0,85257.0,0.3608]
[1766109028188,0.0117353,85260.0,85254.0,0.00017597]
[1766109028385,0.00592,85259.0,85254.0,0.00017597]
[1766109029989,0.00592,85259.0,85255.0,0.14177]
[1766109030188,0.00592,85260.0,85254.0,0.00017597]
[1766109030393,0.0117347,85265.0,85254.0,0.00017597]
[1766109030595,0.00592,85264.0,85254.0,0.00017597]
[1766109031098,0.3608,85268.0,85258.0,0.1535054]
[1766109031285,0.00592,85269.0,85268.0,0.14177]
[1766109031593,2.46596,85286.0,85268.0,0.14177]
[1766109031594,0.00592,85270.0,85268.0,0.3608]
[1766109031978,0.00592,85270.0,85261.0,0.14177]
[1766109032179,0.011734,85269.0,85261.0,0.14177]
[1766109032491,0.00592,85268.0,85261.0,0.14177]
[1766109033000,0.00592,85268.0,85259.0,0.00592]
[1766109033596,0.00592,85268.0,85259.0,0.14769]
[1766109034982,0.3725336,85273.0,85259.0,0.14769]
[1766109035182,0.00592,85272.0,85259.0,0.14769]
[1766109035382,0.0117337,85271.0,85259.0,0.14769]
[1766109035579,0.0117341,85269.0,85259.0,0.00592]
[1766109036796,0.00592,85272.0,85259.0,0.14769]
[1766109037191,0.0117341,85269.0,85259.0,0.14769]
[1766109037498,0.0176536,85272.0,85259.0,0.14769]
[1766109037989,0.00592,85272.0,85259.0,0.14769]
[1766109038389,0.0176537,85272.0,85259.0,0.14769]
[1766109038590,0.0117339,85270.0,85259.0,0.14769]
[1766109039087,0.00592,85272.0,85259.0,0.00592]
[1766109039292,0.0117341,85269.0,85259.0,0.14769]
[1766109039992,0.3608,85267.0,85259.0,0.14769]
[1766109040190,0.00592,85266.0,85259.0,0.14769]
[1766109041294,0.00592,85266.0,85263.0,0.14177]
[1766109041492,0.00592,85270.0,85263.0,0.14177]
[1766109041683,0.3608,85277.0,85263.0,0.1535047]
[1766109041886,0.00592,85276.0,85263.0,0.1535047]
[1766109042483,0.00592,85276.0,85265.0,0.0117345]
[1766109042684,0.00592,85276.0,85265.0,0.14177]
[1766109043082,0.00592,85275.0,85273.0,0.3608]
[1766109043292,0.00592,85274.0,85273.0,0.3608]
[1766109043493,0.00592,85274.0,85265.0,0.14177]
[1766109043695,0.00592,85274.0,85269.0,0.3608]
[1766109044488,0.00017597,85278.0,85269.0,0.3608]
[1766109044489,0.00017597,85278.0,85270.0,0.14977]
[1766109044689,0.00017597,85278.0,85263.0,0.00592]
[1766109044690,0.3608,85275.0,85263.0,0.0117347]
[1766109044994,0.00592,85274.0,85262.0,0.51057]
[1766109045184,0.00592,85273.0,85263.0,0.14977]
[1766109045388,0.3608,85275.0,85263.0,0.14977]
[1766109045588,0.00592,85274.0,85263.0,0.14977]
[1766109045989,0.00592,85273.0,85263.0,0.14977]
[1766109046703,0.00592,85273.0,85263.0,0.15569]
[1766109048005,0.00592,85273.0,85263.0,0.00592]
[1766109049404,0.00592,85273.0,85263.0,0.15569]
[1766109050109,0.3608,85275.0,85263.0,0.15569]
[1766109050110,0.00592,85272.0,85263.0,0.15569]
[1766109051200,0.3608,85275.0,85263.0,0.15569]
[1766109051604,0.00592,85274.0,85263.0,0.15569]
[1766109051803,0.50728,85292.0,85274.0,0.14064]
[1766109052005,0.3725309,85292.0,85281.0,0.3608]
[1766109052199,0.09187184,85292.0,85282.0,0.14046]
[1766109052400,0.00592,85291.0,85282.0,0.14046]
[1766109052998,0.0117311,85290.0,85281.0,0.3608]
[1766109053602,0.21239907,85291.0,85261.0,0.3608]
[1766109053603,0.3608,85285.0,85261.0,0.3608]
[1766109053904,0.7216,85262.0,85250.0,0.14015]
[1766109054108,0.3608,85262.0,85251.0,0.1578064]
[1766109054309,0.3608,85262.0,85253.0,0.1518861]
[1766109054513,0.3608,85262.0,85253.0,0.3725361]
[1766109054514,0.0568,85262.0,85253.0,0.3725361]
[1766109054698,0.00592,85264.0,85255.0,0.0117358]
[1766109054898,0.00592,85264.0,85256.0,0.00592]
[1766109055206,0.20647907,85290.0,85263.0,0.3608]
[1766109055410,0.0117319,85285.0,85275.0,0.3608]
[1766109055599,0.00592,85284.0,85275.0,0.3608]
[1766109055800,0.1524,85284.0,85275.0,0.3608]
[1766109056798,0.164132,85284.0,85275.0,0.3608]
[1766109059012,0.164132,85284.0,85272.0,0.3608]
[1766109059196,0.20647907,85282.0,85272.0,0.3608]
[1766109059405,0.0117323,85281.0,85271.0,0.00017597]
[1766109059609,0.00588,85280.0,85271.0,0.00017597]
[1766109060709,0.14648,85276.0,85267.0,0.35585698]
[1766109060907,0.3608,85268.0,85257.0,0.36668]
[1766109061108,0.00588,85267.0,85257.0,0.36668]
[1766109061615,0.00588,85267.0,85258.0,0.14977]
[1766109061906,0.00588,85267.0,85257.0,0.3608]
[1766109062309,0.00588,85267.0,85258.0,0.14977]
[1766109062611,0.00017597,85271.0,85260.0,0.14926]
[1766109062612,0.00588,85266.0,85260.0,0.14926]
[1766109062808,0.20647907,85270.0,85265.0,0.3608]
[1766109063112,0.00588,85269.0,85265.0,0.3608]
[1766109064709,0.00588,85276.0,85272.0,0.00111]
[1766109064914,0.00588,85280.0,85276.0,0.00111]
[1766109065112,0.3608,85286.0,85278.0,0.00111]
[1766109065307,0.00588,85285.0,85284.0,0.00111]
[1766109065513,0.00588,85286.0,85284.0,0.00111]
[1766109065810,0.00588,85289.0,85284.0,0.00111]
[1766109066915,0.00588,85289.0,85283.0,0.3608]
[1766109067116,0.49625,85287.0,85278.0,0.00588]
[1766109067311,0.3608,85287.0,85278.0,0.00588]
[1766109068020,0.00588,85286.0,85278.0,0.00588]
[1766109072520,0.00558,85286.0,85278.0,0.00588]
[1766109072824,0.00042,85286.0,85279.0,0.00036]
[1766109078030,0.00042,85286.0,85280.0,0.0117325]
[1766109079730,0.00042,85286.0,85278.0,0.00588]
[1766109080822,0.00042,85286.0,85279.0,0.0117326]
[1766109082332,0.00042,85286.0,85278.0,0.00588]
[1766109088122,0.3608,85282.0,85264.0,0.3608]
[1766109088323,0.14834,85273.0,85264.0,0.3608]
[1766109088532,0.15422,85273.0,85260.0,0.3608]
[1766109088732,0.20650652,85270.0,85260.0,0.3608]
[1766109089036,0.00588,85269.0,85260.0,0.3608]
[1766109091132,0.00588,85269.0,85261.0,0.0117351]
[1766109092137,0.00588,85269.0,85263.0,0.0117347]
[1766109093332,0.00588,85268.0,85265.0,0.0117345]
[1766109093533,0.00588,85268.0,85260.0,0.3608]
[1766109093836,0.00588,85267.0,85264.0,0.0117346]
[1766109095536,0.00588,85268.0,85264.0,0.0117346]
[1766109095735,0.00588,85269.0,85264.0,0.0117346]
[1766109096135,0.00588,85271.0,85267.0,0.0117343]
[1766109096630,0.00017597,85274.0,85267.0,0.0117343]
[1766109096832,0.00588,85273.0,85269.0,0.0117339]
[1766109097536,0.00588,85273.0,85268.0,0.0117341]
[1766109097842,0.00588,85273.0,85262.0,0.00588]
[1766109098242,0.00588,85273.0,85267.0,0.0117342]
[1766109098843,0.14834,85302.0,85272.0,0.3608]
[1766109099149,0.3725264,85325.0,85267.0,0.3608]
[1766109099150,0.20650652,85330.0,85288.0,0.41301304]
[1766109099334,0.0117252,85333.0,85311.0,0.0117281]
[1766109099525,0.14834,85320.0,85298.0,2.46492]
[1766109099832,0.14834,85320.0,85267.0,0.06535765]
[1766109099833,0.14834,85310.0,85300.0,0.00017586]
[1766109100033,0.14834,85309.0,85300.0,0.00017586]
[1766109100235,0.14834,85317.0,85308.0,0.3608]
[1766109100438,0.00588,85316.0,85307.0,0.3608]
[1766109100638,6e-08,85318.0,85315.0,0.3608]
[1766109100840,6e-08,85318.0,85316.0,0.0117275]
[1766109101037,0.00234364,85338.0,85322.0,0.0117266]
[1766109101240,0.00234364,85338.0,85337.0,0.3608]
[1766109101455,4e-08,85338.0,85337.0,0.3608]
[1766109101747,0.00588,85358.0,85342.0,0.0117239]
[1766109102047,0.3608,85357.0,85344.0,0.3608]
[1766109102343,0.36532,85357.0,85344.0,0.3608]
[1766109102539,0.00452,85357.0,85344.0,0.3608]
[1766109102751,0.15171,85357.0,85344.0,0.3608]
[1766109103038,0.00452,85357.0,85344.0,0.36151]
[1766109103547,0.00452,85357.0,85344.0,0.3608]
[1766109104333,0.15171,85357.0,85343.0,0.00588]
[1766109104530,0.3608,85347.0,85343.0,0.00588]
[1766109104728,0.3608,85347.0,85342.0,0.00588]
[1766109105147,0.3608,85347.0,85341.0,0.00017576]
[1766109105352,0.3608,85347.0,85341.0,0.00605576]
[1766109105646,0.36009,85347.0,85341.0,0.00605576]
[1766109105846,0.35967,85347.0,85341.0,0.00605576]
[1766109106635,0.3608,85354.0,85342.0,0.3608]
[1766109106836,0.00588,85355.0,85343.0,0.0009]
[1766109107841,0.00588,85355.0,85349.0,0.3608]
[1766109108146,0.00588,85357.0,85349.0,0.3608]
[1766109108540,0.3608,85370.0,85355.0,0.00078]
[1766109108747,0.00588,85369.0,85359.0,0.3608]
[1766109108941,0.00588,85369.0,85359.0,0.36668]
[1766109109137,0.0117192,85377.0,85367.0,0.3608]
[1766109109340,0.00588,85376.0,85367.0,0.3608]
[1766109109745,0.0175994,85375.0,85367.0,0.3608]
[1766109109946,0.0117194,85375.0,85367.0,0.3608]
[1766109110360,0.00588,85374.0,85367.0,0.3608]
[1766109112246,0.0117189,85379.0,85367.0,0.3608]
[1766109112445,0.00588,85377.0,85367.0,0.3608]
[1766109112743,0.0117189,85379.0,85367.0,0.3608]
[1766109112945,0.00588,85376.0,85367.0,0.3608]
[1766109113139,0.00588,85376.0,85374.0,0.3608]
[1766109115742,0.00588,85376.0,85374.0,0.2808]
[1766109116054,0.00588,85376.0,85365.0,0.3608]
[1766109116550,0.0117204,85369.0,85364.0,0.00588]
[1766109116751,0.3608,85365.0,85363.0,0.00605576]
[1766109117354,0.3608,85365.0,85348.0,0.3608]
[1766109117355,0.0117209,85364.0,85358.0,0.00588]
[1766109117653,0.0117232,85348.0,85337.0,1.5]
[1766109117844,0.3608,85365.0,85338.0,0.00588]
[1766109117845,0.3608,85343.0,85338.0,0.00588]
[1766109118046,0.0117242,85341.0,85321.0,0.0117268]
[1766109118352,0.3608,85334.0,85322.0,0.00017576]
[1766109118556,0.3608,85334.0,85323.0,0.00588]
[1766109118756,0.3608,85334.0,85324.0,0.00588]
[1766109118947,0.3608,85334.0,85325.0,0.00588]
[1766109121257,0.3608,85326.0,85325.0,0.00588]
[1766109121648,0.3608,85334.0,85325.0,0.00588]
[1766109122158,0.00588,85335.0,85325.0,0.00588]
[1766109122656,0.14383,85354.0,85333.0,0.0037]
[1766109122862,0.00588,85347.0,85340.0,0.3608]
[1766109123052,0.00588,85346.0,85340.0,0.3608]
[1766109123361,0.00588,85345.0,85340.0,0.3608]
[1766109123956,0.3608,85358.0,85341.0,0.0037]
[1766109124157,0.00588,85357.0,85351.0,0.3608]
[1766109125160,0.3608,85358.0,85351.0,0.3608]
[1766109125464,0.00588,85357.0,85351.0,0.3608]
[1766109125864,0.00588,85356.0,85351.0,0.3608]
[1766109126059,0.00306,85356.0,85351.0,0.3608]
[1766109127156,0.00306,85356.0,85345.0,0.00588]
[1766109127355,0.14383,85345.0,85327.0,0.3608]
[1766109127560,0.14383,85343.0,85328.0,0.00588]
[1766109129164,0.3608,85338.0,85328.0,0.00588]
[1766109129467,0.36668,85338.0,85328.0,0.00588]
[1766109131561,0.3608,85336.0,85328.0,0.00588]
[1766109133176,0.00017576,85344.0,85333.0,0.3608]
[1766109133472,0.011723,85349.0,85342.0,0.3608]
[1766109133672,0.00588,85350.0,85342.0,0.3608]
[1766109136076,0.00588,85351.0,85349.0,0.3608]
[1766109136372,2.463,85370.0,85349.0,0.3608]
[1766109136373,0.1607213,85362.0,85349.0,0.3608]
[1766109136562,0.00588,85361.0,85349.0,0.3608]
[1766109137962,0.00588,85360.0,85349.0,0.3608]
[1766109138276,0.3608,85366.0,85349.0,0.3608]
[1766109138666,0.30233527,85400.0,85349.0,0.3608]
[1766109138667,0.0117186,85381.0,85363.0,0.011721]
[1766109138868,0.00588,85377.0,85374.0,0.3608]
[1766109139065,0.00588,85376.0,85374.0,0.3608]
[1766109139465,0.0117186,85381.0,85374.0,0.3608]
[1766109139661,0.00588,85379.0,85374.0,0.3608]
[1766109139866,0.01406164,85378.0,85365.0,0.36668]
[1766109140764,0.01406164,85378.0,85365.0,0.3608]
[1766109140970,0.16306164,85378.0,85365.0,0.3608]
[1766109141566,0.0117194,85376.0,85365.0,0.3608]
[1766109141771,0.00588,85375.0,85365.0,0.3608]
[1766109144268,0.0117196,85374.0,85365.0,0.3608]
[1766109145270,0.00588,85375.0,85365.0,0.3608]
[1766109147176,0.0175995,85375.0,85365.0,0.3608]
[1766109150475,0.0117198,85373.0,85365.0,0.3608]
[1766109150881,0.00588,85375.0,85365.0,0.3608]
[1766109152281,0.0117196,85374.0,85365.0,0.3608]
[1766109153882,0.3608,85367.0,85362.0,0.00017576]
[1766109154083,0.1607209,85364.0,85350.0,0.3608]
[1766109154272,0.3725227,85351.0,85344.0,0.00588]
[1766109154584,0.3608,85351.0,85344.0,0.00588]
[1766109154784,0.0117229,85350.0,85334.0,0.011725]
[1766109154988,0.3608,85339.0,85335.0,0.0046]
[1766109155985,0.7216,85339.0,85335.0,0.0046]
[1766109156691,0.00017576,85346.0,85338.0,0.3608]
[1766109157588,0.00017576,85346.0,85339.0,0.00588]
[1766109162089,0.00017576,85346.0,85339.0,0.02396]
[1766109162588,0.00017576,85346.0,85339.0,0.01808]
[1766109162791,0.00017576,85346.0,85339.0,0.02396]
[1766109163587,0.00588,85348.0,85341.0,0.01808]
[1766109171104,0.00588,85348.0,85342.0,0.3608]
[1766109171595,0.00588,85348.0,85342.0,0.3727]
[1766109171902,0.00588,85348.0,85343.0,0.0119]
[1766109174611,0.0117223,85354.0,85343.0,0.0119]
[1766109174807,0.00588,85353.0,85343.0,0.0119]
[1766109176711,0.3608,85358.0,85350.0,0.0137]
[1766109176894,0.00588,85357.0,85350.0,0.0137]
[1766109177210,0.50562,85374.0,85357.0,0.00166]
[1766109177505,0.0117207,85367.0,85357.0,0.00166]
[1766109177706,0.00588,85366.0,85357.0,0.00166]
[1766109178101,0.0117208,85365.0,85356.0,0.3608]
[1766109179707,0.0117217,85359.0,85349.0,0.3608]
[1766109179901,0.0117217,85359.0,85349.0,0.36085]
[1766109180102,0.00588,85360.0,85350.0,5e-05]
[1766109180410,0.0176015,85360.0,85350.0,5e-05]
[1766109180608,0.0117218,85358.0,85351.0,0.3608]
[1766109181209,0.3608,85352.0,85348.0,0.00095368]
[1766109181595,0.0117227,85351.0,85348.0,8e-08]
[1766109182120,0.0117227,85351.0,85342.0,0.00588]
[1766109182410,0.36668,85352.0,85342.0,0.00588]
[1766109183413,0.36668,85352.0,85343.0,0.00038]
[1766109183610,0.3663,85352.0,85346.0,0.00038]
[1766109183909,0.00588,85352.0,85349.0,0.011723]
[1766109184102,0.00588,85357.0,85351.0,0.3608]
[1766109186410,0.00588,85357.0,85352.0,0.0117226]
[1766109186710,0.00588,85365.0,85351.0,0.36668]
[1766109187008,0.00588,85365.0,85356.0,0.011722]
[1766109187206,0.00588,85365.0,85360.0,0.3608]
[1766109188411,0.0117198,85373.0,85360.0,0.3608]
[1766109188615,0.01172,85371.0,85360.0,0.3608]
[1766109191118,0.00588,85372.0,85360.0,0.3608]
[1766109192017,0.0175999,85372.0,85360.0,0.3608]
[1766109192617,0.0175999,85372.0,85363.0,0.3608]
[1766109193318,0.00588,85372.0,85363.0,0.3608]
[1766109193617,0.00588,85371.0,85363.0,0.3608]
[1766109195424,0.0117198,85373.0,85363.0,0.3608]
[1766109195721,0.00588,85372.0,85363.0,0.3608]
[1766109196110,0.01172,85371.0,85363.0,0.3608]
[1766109196810,0.00588,85372.0,85363.0,0.3608]
[1766109197520,0.0175998,85372.0,85363.0,0.3608]
[1766109198221,0.0117198,85372.0,85363.0,0.3608]
[1766109198423,0.00588,85371.0,85363.0,0.3608]
[1766109199823,0.0117204,85368.0,85363.0,0.3608]
[1766109200023,0.00588,85367.0,85363.0,0.3608]
[1766109200206,0.00588,85366.0,85363.0,0.3608]
[1766109203630,0.0117214,85361.0,85350.0,0.00588]
[1766109203822,0.00588,85360.0,85348.0,0.00588]
[1766109205724,0.3608,85356.0,85348.0,0.00588]
[1766109206025,0.3608,85356.0,85345.0,0.00017576]
[1766109206026,0.00588,85355.0,85345.0,0.00017576]
[1766109206222,0.3608,85349.0,85345.0,0.00017576]
[1766109206634,0.0117233,85347.0,85345.0,6e-08]
[1766109206931,0.00588,85346.0,85345.0,6e-08]
[1766109211436,0.3608,85349.0,85345.0,6e-08]
[1766109211733,0.00588,85348.0,85345.0,6e-08]
[1766109211928,0.00588,85347.0,85345.0,6e-08]
[1766109214632,0.3608,85348.0,85345.0,6e-08]
[1766109214834,0.0001757,85354.0,85345.0,0.01172356]
[1766109215132,0.00588,85353.0,85345.0,0.01172356]
[1766109215532,0.00588,85353.0,85347.0,0.0117232]
[1766109215733,0.00588,85352.0,85347.0,0.0117232]
[1766109215919,0.00588,85351.0,85347.0,0.0117232]
[1766109216928,0.0001757,85354.0,85349.0,0.0117229]
[1766109217228,0.00588,85353.0,85349.0,0.0117229]
[1766109218632,0.0001757,85354.0,85349.0,0.0117229]
[1766109218824,0.0060557,85354.0,85349.0,0.0117229]
[1766109219022,0.35524088,85356.0,85351.0,0.0117226]
[1766109220233,0.3608,85371.0,85358.0,0.0117217]
[1766109220434,0.00588,85370.0,85363.0,0.3608]
[1766109220833,0.3608,85371.0,85363.0,0.3608]
[1766109221032,0.0117171,85393.0,85363.0,0.3608]
[1766109221033,0.0117174,85390.0,85373.0,0.0117196]
[1766109221231,0.00588,85389.0,85375.0,0.0117193]
[1766109221430,0.00588,85389.0,85373.0,0.00017576]
[1766109221431,0.13809,85385.0,85373.0,0.00017576]
[1766109221627,0.3608,85378.0,85373.0,0.00017576]
[1766109223233,0.00588,85384.0,85373.0,0.01189536]
[1766109224628,0.3608,85385.0,85373.0,0.15590536]
[1766109224828,0.00588,85384.0,85373.0,0.15590536]
[1766109227042,0.3608,85385.0,85377.0,0.1557291]
[1766109227334,0.3608,85392.0,85379.0,0.0117188]
[1766109227536,0.3608,85392.0,85381.0,0.14401]
[1766109227741,0.00588,85400.0,85393.0,0.00015]
[1766109227936,0.00588,85399.0,85393.0,0.36095]
[1766109228136,0.1597929,85423.0,85403.0,0.0117155]
[1766109228336,0.00588,85417.0,85414.0,0.3608]
[1766109230132,0.15396,85427.0,85414.0,0.3608]
[1766109230444,0.00588,85419.0,85414.0,0.3608]
[1766109231033,0.14808,85432.0,85416.0,0.3608]
[1766109231349,0.00588,85431.0,85426.0,0.3608]
[1766109232149,0.011711,85437.0,85426.0,0.3608]
[1766109232338,0.00588,85436.0,85426.0,0.3608]
[1766109232536,0.0117112,85435.0,85426.0,0.3608]
[1766109233640,0.15396,85436.0,85426.0,0.3608]
[1766109233847,0.0117121,85429.0,85420.0,0.00017565]
[1766109234049,0.0175921,85429.0,85420.0,0.00017565]
[1766109234846,0.00588,85429.0,85420.0,0.00017565]
[1766109235935,0.3608,85424.0,85420.0,0.00017565]
[1766109240646,0.3608,85424.0,85420.0,0.00241565]
[1766109240647,0.35855,85424.0,85420.0,0.00241565]
[1766109240852,0.35855,85424.0,85420.0,0.00017565]
[1766109241740,0.00588,85429.0,85421.0,0.36148]
[1766109241941,0.00588,85429.0,85421.0,0.3608]
[1766109243451,0.00588,85429.0,85422.0,0.00142]
[1766109243657,0.0117106,85440.0,85428.0,0.3608]
[1766109243838,0.00588,85439.0,85428.0,0.3608]
[1766109244149,0.14128,85439.0,85428.0,0.3608]
[1766109244350,0.0117114,85434.0,85428.0,0.3608]
[1766109244547,0.00588,85433.0,85428.0,0.3608]
[1766109244853,0.00588,85432.0,85428.0,0.3608]
[1766109247043,0.1471117,85431.0,85420.0,0.00017565]
[1766109247237,0.36668,85432.0,85408.0,0.3608]
[1766109247238,0.3608,85424.0,85410.0,0.0117145]
[1766109247447,0.3608,85424.0,85412.0,0.0117143]
[1766109248549,0.4962,85424.0,85411.0,0.00588]
[1766109248749,0.4962,85424.0,85409.0,0.01189035]
[1766109248750,0.3608,85415.0,85409.0,0.00017565]
[1766109248956,0.3608,85415.0,85410.0,0.00588]
[1766109249157,0.3608,85415.0,85411.0,0.00588]
[1766109249953,0.00588,85418.0,85411.0,0.00588]
[1766109251154,0.3608,85417.0,85411.0,0.00588]
[1766109251962,0.00588,85417.0,85416.0,0.3608]
[1766109252260,0.1354,85430.0,85417.0,0.0117136]
[1766109252464,0.00588,85429.0,85416.0,0.3725138]
[1766109252665,0.00588,85429.0,85416.0,0.3608]
[1766109252961,0.1512,85429.0,85416.0,0.3608]
[1766109253460,0.14532,85425.0,85416.0,0.3608]
[1766109253764,0.3608,85420.0,85411.0,0.00588]
[1766109254657,0.3608,85420.0,85411.0,0.0175944]
[1766109254858,0.3608,85420.0,85413.0,0.0117142]
[1766109255564,0.3608,85420.0,85411.0,0.00588]
[1766109256656,0.3608,85420.0,85411.0,0.0175944]
[1766109256962,0.00588,85421.0,85418.0,0.3725135]
[1766109257178,0.00588,85422.0,85418.0,0.3725135]
[1766109258051,0.00017529,85434.0,85426.0,0.0117124]
[1766109258259,0.00017529,85434.0,85426.0,0.3608]
[1766109258260,0.00605529,85434.0,85426.0,0.3608]
[1766109258452,0.00605529,85434.0,85433.0,0.3608]
[1766109258858,0.00588529,85434.0,85433.0,0.3608]
[1766109259355,0.00588529,85434.0,85433.0,0.2008]
[1766109259562,0.00588529,85434.0,85426.0,0.3725124]
[1766109259759,9e-08,85434.0,85428.0,0.0117121]
[1766109259958,0.00588,85438.0,85428.0,0.0117121]
[1766109260160,0.00588,85438.0,85426.0,0.3608]
[1766109260368,0.1512,85437.0,85426.0,0.3725124]
[1766109260564,0.00588,85437.0,85428.0,0.011712]
[1766109261267,0.00588,85437.0,85426.0,0.3608]
[1766109262255,0.00588,85437.0,85427.0,0.00588]
[1766109263464,0.00588,85437.0,85427.0,0.0175922]
[1766109264871,0.00588,85437.0,85427.0,0.00588]
[1766109267359,0.14532,85434.0,85428.0,0.00588]
[1766109267555,0.14532,85434.0,85426.0,0.3608]
[1766109268173,0.00588,85437.0,85429.0,0.011712]
[1766109268563,0.00588,85437.0,85426.0,0.3608]
[1766109268763,0.017591,85437.0,85426.0,0.3608]
[1766109268962,0.3608,85435.0,85426.0,0.3608]
[1766109269463,0.1570315,85433.0,85426.0,0.3608]
[1766109269659,0.1570319,85430.0,85425.0,0.00588]
[1766109269860,0.1570319,85430.0,85414.0,0.011714]
[1766109270063,0.1570319,85430.0,85417.0,0.00588]
[1766109270461,0.00588,85431.0,85416.0,0.00588]
[1766109270462,0.0117126,85425.0,85416.0,0.00588]
[1766109270671,0.14532,85424.0,85416.0,0.00588]
[1766109271175,0.00588,85426.0,85416.0,0.00588]
[1766109272767,0.00588,85426.0,85416.0,0.0175937]
[1766109272966,0.00588,85426.0,85416.0,0.00588]
[1766109273277,0.00588,85426.0,85422.0,0.0117129]
[1766109273581,0.00588,85438.0,85431.0,0.0117117]
[1766109273879,0.00588,85438.0,85437.0,0.3608]
[1766109274068,0.00588,85439.0,85437.0,0.3608]
[1766109275378,0.00588,85443.0,85437.0,0.3608]
[1766109275767,0.00588,85444.0,85437.0,0.3608]
[1766109276173,0.0117089,85452.0,85437.0,0.3725108]
[1766109276371,0.00234034,85458.0,85445.0,0.3608]
[1766109276372,0.00588,85451.0,85445.0,0.3608]
[1766109276583,0.00588,85450.0,85445.0,0.3608]
[1766109276786,0.00234034,85458.0,85448.0,0.3608]
[1766109276983,0.00234034,85458.0,85457.0,0.3608]
[1766109277188,0.00234034,85458.0,85450.0,0.3608]
[1766109278386,0.00588,85457.0,85450.0,0.3608]
[1766109279490,0.0175882,85457.0,85450.0,0.3608]
[1766109280075,0.0117085,85455.0,85450.0,0.3608]
[1766109280280,0.3608,85451.0,85449.0,0.00017554]
[1766109287795,0.3608,85451.0,85446.0,0.00077157]
[1766109293393,0.14894,85445.0,85441.0,0.00588]
[1766109293690,0.14894,85439.0,85431.0,0.00588]
[1766109294085,0.00588,85438.0,85431.0,0.00588]
[1766109294597,0.00588,85438.0,85431.0,0.0175917]
[1766109294792,0.3608,85442.0,85432.0,0.14458]
[1766109294993,0.50974,85450.0,85440.0,0.0117105]
[1766109295297,0.00588,85449.0,85440.0,0.2173727]
[1766109295991,0.1606485,85455.0,85446.0,0.3608]
[1766109296496,0.00588,85454.0,85446.0,0.3608]
[1766109297993,0.1606485,85455.0,85446.0,0.3608]
[1766109297994,0.14894,85455.0,85446.0,0.3608]
[1766109298189,0.00588,85453.0,85446.0,0.3608]
[1766109298387,0.00588,85452.0,85446.0,0.3608]
[1766109298988,0.00588,85451.0,85446.0,0.3608]
[1766109300000,0.01404854,85458.0,85446.0,0.3608]
[1766109300197,0.00588,85456.0,85446.0,0.3608]
[1766109300497,0.00234034,85458.0,85446.0,0.3608]
[1766109300702,0.00588,85455.0,85446.0,0.3608]
[1766109300901,0.00234034,85458.0,85446.0,0.3608]
[1766109301099,0.00588,85454.0,85446.0,0.3608]
[1766109301287,0.15482,85454.0,85446.0,0.3608]
[1766109301598,0.0175887,85454.0,85446.0,0.3608]
[1766109301784,0.1665287,85454.0,85446.0,0.3608]
[1766109303001,0.0117089,85452.0,85446.0,0.3608]
[1766109305002,0.00588,85451.0,85446.0,0.3608]
[1766109305702,0.00588,85450.0,85446.0,0.3608]
[1766109307090,0.00588,85450.0,85446.0,0.49845]
[1766109307388,0.00588,85450.0,85446.0,0.3608]
[1766109308095,0.00017518,85457.0,85447.0,0.13765]
[1766109308403,0.15268,85456.0,85446.0,0.3608]
[1766109309300,0.1468,85454.0,85446.0,0.3608]
[1766109309603,0.1585087,85454.0,85446.0,0.3608]
[1766109310499,0.00588,85456.0,85426.0,0.13765]
[1766109310500,0.1468,85443.0,85426.0,0.13765]
[1766109310705,0.3608,85441.0,85427.0,0.1552422]
[1766109311804,0.3608,85441.0,85431.0,0.13583]
[1766109312107,1.21e-06,85444.0,85439.0,0.13583]
[1766109312299,1.21e-06,85444.0,85443.0,0.3608]
[1766109312500,0.00588,85444.0,85443.0,0.3608]
[1766109312701,0.00588,85444.0,85436.0,0.3608]
[1766109313802,0.00588,85444.0,85436.0,0.49681]
[1766109314002,0.00588,85444.0,85443.0,0.3608]
[1766109314696,0.00588,85444.0,85443.0,0.2808]